[Event "*** Titled Tuesday Blitz"]
[Site "Chess.com"]
[Date "2020.04.21"]
[Round "5"]
[White "bascheyaro"]
[Black "SaguriGuerra"]
[Result "1-0"]
[WhiteElo "2712"]
[BlackElo "2532"]
[TimeControl "180+1"]
[EndTime "10:57:39 PDT"]
[Termination "bascheyaro won by checkmate"]

1. d4 {[%clk 0:02:56.7]} 1... d6 {[%clk 0:02:59.8]} 2. Nf3 {[%clk 0:02:56.7]}
2... Nf6 {[%clk 0:02:59.6]} 3. Bg5 {[%clk 0:02:56.4]} 3... Nbd7 {[%clk 0:02:58]}
4. c4 {[%clk 0:02:55.9]} 4... g6 {[%clk 0:02:54.3]} 5. Nc3 {[%clk 0:02:56]} 5...
Bg7 {[%clk 0:02:53]} 6. e4 {[%clk 0:02:56]} 6... O-O {[%clk 0:02:53.5]} 7. Bd3
{[%clk 0:02:50.5]} 7... c6 {[%clk 0:02:53.9]} 8. Qd2 {[%clk 0:02:47.9]} 8... e5
{[%clk 0:02:54.2]} 9. h4 {[%clk 0:02:44.7]} 9... h5 {[%clk 0:02:52.4]} 10. d5
{[%clk 0:02:38.2]} 10... Qc7 {[%clk 0:02:48.3]} 11. dxc6 {[%clk 0:02:35.5]}
11... bxc6 {[%clk 0:02:47.9]} 12. Bc2 {[%clk 0:02:35.6]} 12... Nc5 {[%clk
0:02:34.5]} 13. O-O {[%clk 0:02:33.5]} 13... Rb8 {[%clk 0:02:33.8]} 14. b3
{[%clk 0:02:33.2]} 14... Bg4 {[%clk 0:02:33.4]} 15. Rad1 {[%clk 0:02:32.1]}
15... Bxf3 {[%clk 0:02:23.2]} 16. gxf3 {[%clk 0:02:31.7]} 16... Rfd8 {[%clk
0:02:23.8]} 17. Qe3 {[%clk 0:02:27.8]} 17... Ne6 {[%clk 0:02:22.8]} 18. Ne2
{[%clk 0:02:21.1]} 18... Nd7 {[%clk 0:02:17.3]} 19. Bxd8 {[%clk 0:02:20.1]}
19... Rxd8 {[%clk 0:02:18]} 20. b4 {[%clk 0:02:15.4]} 20... a5 {[%clk
0:02:17.5]} 21. a3 {[%clk 0:02:15.5]} 21... axb4 {[%clk 0:02:17.3]} 22. axb4
{[%clk 0:02:16.4]} 22... Rb8 {[%clk 0:02:17.6]} 23. Rb1 {[%clk 0:02:15.9]} 23...
Nd4 {[%clk 0:02:16.3]} 24. Bd1 {[%clk 0:02:10.1]} 24... c5 {[%clk 0:01:57.7]}
25. b5 {[%clk 0:02:08.2]} 25... Nb6 {[%clk 0:01:57.6]} 26. Qd3 {[%clk
0:02:07.8]} 26... Qe7 {[%clk 0:01:53.3]} 27. Kg2 {[%clk 0:01:50.4]} 27... Qxh4
{[%clk 0:01:51.7]} 28. Rh1 {[%clk 0:01:50.4]} 28... Qg5+ {[%clk 0:01:51.8]} 29.
Kf1 {[%clk 0:01:50.4]} 29... Ra8 {[%clk 0:01:50.2]} 30. Qc3 {[%clk 0:01:30.8]}
30... Ra2 {[%clk 0:01:41.8]} 31. Nc1 {[%clk 0:01:18.8]} 31... Rd2 {[%clk
0:01:32.9]} 32. Ke1 {[%clk 0:01:16.9]} 32... Bh6 {[%clk 0:01:15.5]} 33. Nb3
{[%clk 0:00:37.4]} 33... Na4 {[%clk 0:00:38]} 34. Qxd2 {[%clk 0:00:35.6]} 34...
Qg2 {[%clk 0:00:35.7]} 35. Qxh6 {[%clk 0:00:35.4]} 35... Qxh1+ {[%clk
0:00:35.9]} 36. Kd2 {[%clk 0:00:35.9]} 36... Nxf3+ {[%clk 0:00:34.7]} 37. Ke2
{[%clk 0:00:20.3]} 37... Nd4+ {[%clk 0:00:34.2]} 38. Nxd4 {[%clk 0:00:20.2]}
38... Qxe4+ {[%clk 0:00:33.4]} 39. Qe3 {[%clk 0:00:19.9]} 39... Qxb1 {[%clk
0:00:33.3]} 40. Bxa4 {[%clk 0:00:19.8]} 40... cxd4 {[%clk 0:00:32.9]} 41. Qd3
{[%clk 0:00:18.3]} 41... Qa2+ {[%clk 0:00:32.5]} 42. Qc2 {[%clk 0:00:18.7]}
42... d3+ {[%clk 0:00:30.6]} 43. Kxd3 {[%clk 0:00:18.6]} 43... e4+ {[%clk
0:00:30.7]} 44. Kxe4 {[%clk 0:00:18.8]} 44... Qa3 {[%clk 0:00:31.2]} 45. Qb3
{[%clk 0:00:18.5]} 45... f5+ {[%clk 0:00:29.9]} 46. Kf4 {[%clk 0:00:17]} 46...
Qc5 {[%clk 0:00:30.8]} 47. Kg3 {[%clk 0:00:17]} 47... Qe5+ {[%clk 0:00:30.2]}
48. Kg2 {[%clk 0:00:17.3]} 48... Qe4+ {[%clk 0:00:30]} 49. Kf1 {[%clk
0:00:17.7]} 49... h4 {[%clk 0:00:28.3]} 50. b6 {[%clk 0:00:17.5]} 50... Qb7
{[%clk 0:00:24.8]} 51. Bc6 {[%clk 0:00:16.7]} 51... Qxc6 {[%clk 0:00:21.2]} 52.
b7 {[%clk 0:00:17.1]} 52... Qh1+ {[%clk 0:00:21.2]} 53. Ke2 {[%clk 0:00:17.6]}
53... Qe4+ {[%clk 0:00:21.7]} 54. Kd1 {[%clk 0:00:17.7]} 54... Qd4+ {[%clk
0:00:22.1]} 55. Kc1 {[%clk 0:00:16.6]} 55... Qxf2 {[%clk 0:00:22.4]} 56. b8=Q+
{[%clk 0:00:16.5]} 56... Kh7 {[%clk 0:00:22.7]} 57. Qb2 {[%clk 0:00:15.7]} 57...
Qe1+ {[%clk 0:00:20.5]} 58. Kc2 {[%clk 0:00:16.1]} 58... Qe2+ {[%clk 0:00:20.8]}
59. Kb3 {[%clk 0:00:16.6]} 59... Qd3+ {[%clk 0:00:20.4]} 60. Kb4 {[%clk
0:00:16.9]} 60... h3 {[%clk 0:00:19.7]} 61. Q2h8# {[%clk 0:00:16.3]} 1-0

[Event "*** Titled Tuesday Blitz"]
[Site "Chess.com"]
[Date "2020.04.21"]
[Round "5"]
[White "talaicito"]
[Black "MoreChessJulia"]
[Result "1/2-1/2"]
[WhiteElo "2275"]
[BlackElo "1772"]
[TimeControl "180+1"]
[EndTime "10:57:39 PDT"]
[Termination "Game drawn - insufficient material"]

1. d4 {[%clk 0:03:00.9]} 1... c5 {[%clk 0:02:59.2]} 2. d5 {[%clk 0:03:00.3]}
2... b5 {[%clk 0:02:59]} 3. g3 {[%clk 0:02:59.8]} 3... d6 {[%clk 0:02:56.7]} 4.
Bg2 {[%clk 0:02:59.8]} 4... g6 {[%clk 0:02:53.1]} 5. e4 {[%clk 0:02:58.9]} 5...
Bg7 {[%clk 0:02:52.5]} 6. Ne2 {[%clk 0:02:59]} 6... Nd7 {[%clk 0:02:50.3]} 7.
O-O {[%clk 0:02:57.5]} 7... Ngf6 {[%clk 0:02:47.8]} 8. h3 {[%clk 0:02:48.4]}
8... h5 {[%clk 0:02:42.7]} 9. f4 {[%clk 0:02:41]} 9... Nf8 {[%clk 0:02:21.4]}
10. a4 {[%clk 0:02:30.8]} 10... b4 {[%clk 0:02:19.2]} 11. Nd2 {[%clk 0:02:28.9]}
11... Bb7 {[%clk 0:02:14.7]} 12. Rb1 {[%clk 0:01:55.1]} 12... e6 {[%clk
0:01:59.5]} 13. Nc4 {[%clk 0:01:45.8]} 13... exd5 {[%clk 0:01:58.3]} 14. exd5
{[%clk 0:01:44.1]} 14... N8h7 {[%clk 0:01:57.9]} 15. f5 {[%clk 0:01:34.3]} 15...
O-O {[%clk 0:01:55.4]} 16. Bf4 {[%clk 0:01:30.1]} 16... Ne8 {[%clk 0:01:51.5]}
17. fxg6 {[%clk 0:01:09.3]} 17... fxg6 {[%clk 0:01:50.5]} 18. Qd3 {[%clk
0:01:09.8]} 18... g5 {[%clk 0:01:46.5]} 19. Bd2 {[%clk 0:01:09.3]} 19... Nc7
{[%clk 0:01:26.4]} 20. Be4 {[%clk 0:01:05.6]} 20... Nf6 {[%clk 0:01:24.6]} 21.
Bxg5 {[%clk 0:01:00.8]} 21... Qe7 {[%clk 0:01:04.2]} 22. Nf4 {[%clk 0:00:52.4]}
22... Qxe4 {[%clk 0:01:02.3]} 23. Bxf6 {[%clk 0:00:49.4]} 23... Qxd3 {[%clk
0:01:00.6]} 24. cxd3 {[%clk 0:00:48.8]} 24... Bxf6 {[%clk 0:00:59.4]} 25. Nxd6
{[%clk 0:00:47.3]} 25... Nxd5 {[%clk 0:00:56.1]} 26. Nxb7 {[%clk 0:00:45.7]}
26... Bd4+ {[%clk 0:00:53.1]} 27. Kh2 {[%clk 0:00:38.7]} 27... Ne3 {[%clk
0:00:50.7]} 28. Rf3 {[%clk 0:00:36.6]} 28... h4 {[%clk 0:00:42]} 29. Rg1 {[%clk
0:00:32.8]} 29... Nf5 {[%clk 0:00:37]} 30. gxh4+ {[%clk 0:00:32.2]} 30... Bxg1+
{[%clk 0:00:36]} 31. Kxg1 {[%clk 0:00:31]} 31... Nxh4 {[%clk 0:00:35]} 32. Rg3+
{[%clk 0:00:31.2]} 32... Kh7 {[%clk 0:00:34.7]} 33. Ne6 {[%clk 0:00:30.9]} 33...
Rg8 {[%clk 0:00:32.1]} 34. Ng5+ {[%clk 0:00:25.2]} 34... Kh6 {[%clk 0:00:28.4]}
35. Nf7+ {[%clk 0:00:24.9]} 35... Kh5 {[%clk 0:00:28.2]} 36. Rxg8 {[%clk
0:00:23.3]} 36... Rxg8+ {[%clk 0:00:27.3]} 37. Kf2 {[%clk 0:00:22.5]} 37... Rg2+
{[%clk 0:00:26.4]} 38. Ke3 {[%clk 0:00:21.9]} 38... Rxb2 {[%clk 0:00:25.8]} 39.
Nxc5 {[%clk 0:00:21.9]} 39... Rb1 {[%clk 0:00:18.3]} 40. d4 {[%clk 0:00:21.5]}
40... b3 {[%clk 0:00:18.2]} 41. Kd2 {[%clk 0:00:21.5]} 41... Nf3+ {[%clk
0:00:17.9]} 42. Kc3 {[%clk 0:00:21.5]} 42... Nxd4 {[%clk 0:00:17.3]} 43. Kxd4
{[%clk 0:00:18.2]} 43... Rd1+ {[%clk 0:00:17.6]} 44. Kc3 {[%clk 0:00:17.7]}
44... Rc1+ {[%clk 0:00:15.8]} 45. Kxb3 {[%clk 0:00:17.7]} 45... Rxc5 {[%clk
0:00:15.7]} 46. Kb4 {[%clk 0:00:17.4]} 46... Rf5 {[%clk 0:00:15]} 47. Nd6 {[%clk
0:00:16.7]} 47... Rd5 {[%clk 0:00:14.1]} 48. Nc8 {[%clk 0:00:16.2]} 48... a5+
{[%clk 0:00:13.2]} 49. Kc4 {[%clk 0:00:16.3]} 49... Rg5 {[%clk 0:00:12.5]} 50.
Nd6 {[%clk 0:00:16.4]} 50... Kh4 {[%clk 0:00:10.4]} 51. Nb7 {[%clk 0:00:14.8]}
51... Kxh3 {[%clk 0:00:09.5]} 52. Nxa5 {[%clk 0:00:15.1]} 52... Rxa5 {[%clk
0:00:08.8]} 53. Kb4 {[%clk 0:00:15.9]} 53... Rxa4+ {[%clk 0:00:08.9]} 54. Kxa4
{[%clk 0:00:16]} 1/2-1/2

[Event "*** Titled Tuesday Blitz"]
[Site "Chess.com"]
[Date "2020.04.21"]
[Round "5"]
[White "HouseOfDurin"]
[Black "cottage_cheese"]
[Result "1-0"]
[WhiteElo "2095"]
[BlackElo "2216"]
[TimeControl "180+1"]
[EndTime "10:57:39 PDT"]
[Termination "HouseOfDurin won on time"]

1. d4 {[%clk 0:03:00.9]} 1... Nf6 {[%clk 0:02:59.1]} 2. Bg5 {[%clk 0:02:59.2]}
2... e6 {[%clk 0:02:58]} 3. e4 {[%clk 0:02:58.7]} 3... h6 {[%clk 0:02:54.4]} 4.
Bxf6 {[%clk 0:02:58.5]} 4... Qxf6 {[%clk 0:02:54.1]} 5. e5 {[%clk 0:02:58.9]}
5... Qd8 {[%clk 0:02:51.9]} 6. f4 {[%clk 0:02:58.9]} 6... b6 {[%clk 0:02:47.4]}
7. Be2 {[%clk 0:02:53.8]} 7... d5 {[%clk 0:02:33.2]} 8. exd6 {[%clk 0:02:41]}
8... Bxd6 {[%clk 0:02:20.4]} 9. Bf3 {[%clk 0:02:40.7]} 9... c6 {[%clk 0:02:18]}
10. Ne2 {[%clk 0:02:30.3]} 10... Qc7 {[%clk 0:02:16.4]} 11. g3 {[%clk
0:02:21.1]} 11... Bb7 {[%clk 0:02:16.1]} 12. O-O {[%clk 0:02:19.5]} 12... c5
{[%clk 0:02:13.4]} 13. Kg2 {[%clk 0:02:07]} 13... O-O {[%clk 0:02:07.4]} 14. d5
{[%clk 0:01:50.9]} 14... exd5 {[%clk 0:01:53.6]} 15. Bxd5 {[%clk 0:01:51.8]}
15... Bxd5+ {[%clk 0:01:50.7]} 16. Qxd5 {[%clk 0:01:52.7]} 16... Nc6 {[%clk
0:01:50.3]} 17. Nbc3 {[%clk 0:01:48.7]} 17... a6 {[%clk 0:01:47.3]} 18. a3
{[%clk 0:01:31.4]} 18... Rad8 {[%clk 0:01:47.3]} 19. Qf3 {[%clk 0:01:24.8]}
19... Rfe8 {[%clk 0:01:39.2]} 20. f5 {[%clk 0:01:14.2]} 20... Nd4 {[%clk
0:00:56.6]} 21. Qg4 {[%clk 0:00:45.1]} 21... Nxe2 {[%clk 0:00:32.9]} 22. Nxe2
{[%clk 0:00:41.9]} 22... Qc6+ {[%clk 0:00:29.3]} 23. Kh3 {[%clk 0:00:40.7]}
23... Qe4 {[%clk 0:00:25.4]} 24. Nf4 {[%clk 0:00:34.9]} 24... Bxf4 {[%clk
0:00:24.2]} 25. Rxf4 {[%clk 0:00:35.8]} 25... Qxc2 {[%clk 0:00:23.3]} 26. f6
{[%clk 0:00:35.2]} 26... g6 {[%clk 0:00:23.5]} 27. Qf3 {[%clk 0:00:17.1]} 27...
Rd2 {[%clk 0:00:20.5]} 28. Rf1 {[%clk 0:00:15.1]} 28... Rxh2+ {[%clk 0:00:14.7]}
29. Kg4 {[%clk 0:00:15.3]} 29... Kh7 {[%clk 0:00:12.5]} 30. Rf2 {[%clk
0:00:13.6]} 30... h5+ {[%clk 0:00:11.7]} 31. Kg5 {[%clk 0:00:13.3]} 31... Re5+
{[%clk 0:00:11]} 32. Rf5 {[%clk 0:00:13.6]} 32... Rxf5+ {[%clk 0:00:05.4]} 33.
Qxf5 {[%clk 0:00:14.5]} 33... Qxf5+ {[%clk 0:00:03.8]} 34. Rxf5 {[%clk
0:00:15.4]} 34... gxf5 {[%clk 0:00:04.3]} 35. Kxf5 {[%clk 0:00:15.6]} 35... Rxb2
{[%clk 0:00:05]} 36. Ke5 {[%clk 0:00:16.5]} 36... Rb3 {[%clk 0:00:05.5]} 37. Kd6
{[%clk 0:00:17.4]} 37... Rxa3 {[%clk 0:00:05.7]} 38. Ke7 {[%clk 0:00:18.3]}
38... Kg6 {[%clk 0:00:05.5]} 39. Kd6 {[%clk 0:00:17.9]} 39... c4 {[%clk
0:00:04.7]} 40. Kc6 {[%clk 0:00:18.8]} 40... c3 {[%clk 0:00:04.9]} 41. Kb7
{[%clk 0:00:19.7]} 41... c2 {[%clk 0:00:02.7]} 42. Kc8 {[%clk 0:00:20.6]} 42...
c1=Q+ {[%clk 0:00:03.2]} 43. Kb7 {[%clk 0:00:21.5]} 43... Rd3 {[%clk 0:00:03.7]}
44. g4 {[%clk 0:00:22.4]} 44... Rd7+ {[%clk 0:00:03.5]} 45. Kxa6 {[%clk
0:00:22.3]} 45... Qc4+ {[%clk 0:00:03.1]} 46. Kxb6 {[%clk 0:00:22.2]} 46... Rd6+
{[%clk 0:00:03.5]} 47. Ka5 {[%clk 0:00:23.1]} 47... Qc5+ {[%clk 0:00:01.2]} 48.
Ka4 {[%clk 0:00:22.9]} 1-0

[Event "*** Titled Tuesday Blitz"]
[Site "Chess.com"]
[Date "2020.04.21"]
[Round "5"]
[White "amiralfio"]
[Black "Swarnapuri"]
[Result "1-0"]
[WhiteElo "2533"]
[BlackElo "2697"]
[TimeControl "180+1"]
[EndTime "10:57:40 PDT"]
[Termination "amiralfio won by resignation"]

1. d4 {[%clk 0:03:00.9]} 1... Nc6 {[%clk 0:03:00.9]} 2. g3 {[%clk 0:02:54.5]}
2... e5 {[%clk 0:03:00.5]} 3. d5 {[%clk 0:02:53.6]} 3... Nce7 {[%clk 0:03:00.6]}
4. Bg2 {[%clk 0:02:52.4]} 4... Ng6 {[%clk 0:03:00.4]} 5. e4 {[%clk 0:02:49.5]}
5... Bc5 {[%clk 0:03:00.4]} 6. Ne2 {[%clk 0:02:49.2]} 6... Nf6 {[%clk
0:02:58.9]} 7. Nbc3 {[%clk 0:02:46.9]} 7... a6 {[%clk 0:02:51.8]} 8. O-O {[%clk
0:02:38.5]} 8... d6 {[%clk 0:02:52.2]} 9. a4 {[%clk 0:02:21.6]} 9... O-O {[%clk
0:02:50.4]} 10. Qd3 {[%clk 0:02:20.9]} 10... h6 {[%clk 0:02:33]} 11. Be3 {[%clk
0:02:16.7]} 11... Bxe3 {[%clk 0:02:31]} 12. Qxe3 {[%clk 0:02:17.6]} 12... Ng4
{[%clk 0:02:31.6]} 13. Qd3 {[%clk 0:02:03.3]} 13... Qe7 {[%clk 0:02:13.9]} 14.
h3 {[%clk 0:01:36.6]} 14... Nf6 {[%clk 0:02:13.2]} 15. f4 {[%clk 0:01:37]} 15...
exf4 {[%clk 0:02:13.1]} 16. gxf4 {[%clk 0:01:37.9]} 16... Nh7 {[%clk 0:02:13.7]}
17. Rae1 {[%clk 0:01:33.3]} 17... Bd7 {[%clk 0:01:55.9]} 18. Ng3 {[%clk
0:01:15.4]} 18... Qh4 {[%clk 0:01:51.9]} 19. Nf5 {[%clk 0:01:07.8]} 19... Bxf5
{[%clk 0:01:51.8]} 20. exf5 {[%clk 0:01:08.7]} 20... Nxf4 {[%clk 0:01:52.6]} 21.
Re4 {[%clk 0:00:59.6]} 21... Nxd3 {[%clk 0:01:47.1]} 22. Rxh4 {[%clk 0:00:57.1]}
22... Ne5 {[%clk 0:01:41.8]} 23. a5 {[%clk 0:00:54.2]} 23... Nf6 {[%clk
0:01:30.2]} 24. Rb4 {[%clk 0:00:52.8]} 24... Rab8 {[%clk 0:01:29]} 25. Kf2
{[%clk 0:00:44.1]} 25... Rfe8 {[%clk 0:01:29.5]} 26. Re1 {[%clk 0:00:43.9]}
26... Kf8 {[%clk 0:01:28.4]} 27. Rd4 {[%clk 0:00:26]} 27... Ned7 {[%clk
0:01:28.4]} 28. b4 {[%clk 0:00:24.5]} 28... Rxe1 {[%clk 0:01:23.6]} 29. Kxe1
{[%clk 0:00:25.4]} 29... Re8+ {[%clk 0:01:24]} 30. Kd2 {[%clk 0:00:25.6]} 30...
Re5 {[%clk 0:01:24.9]} 31. Rf4 {[%clk 0:00:24.9]} 31... Nh5 {[%clk 0:01:19.5]}
32. Rf2 {[%clk 0:00:24.3]} 32... Ke7 {[%clk 0:01:17.7]} 33. Nd1 {[%clk
0:00:23.4]} 33... Ndf6 {[%clk 0:01:08.3]} 34. Ne3 {[%clk 0:00:20.8]} 34... Ne4+
{[%clk 0:01:05.2]} 35. Bxe4 {[%clk 0:00:17.9]} 35... Rxe4 {[%clk 0:01:06.1]} 36.
c3 {[%clk 0:00:16.4]} 36... Kf6 {[%clk 0:01:02.5]} 37. Kd3 {[%clk 0:00:15.8]}
37... Re8 {[%clk 0:00:58.7]} 38. Ng4+ {[%clk 0:00:11.8]} 38... Kg5 {[%clk
0:00:58.5]} 39. Ne3 {[%clk 0:00:08.4]} 39... Nf4+ {[%clk 0:00:58.8]} 40. Kd2
{[%clk 0:00:08.3]} 40... Re5 {[%clk 0:00:59.3]} 41. h4+ {[%clk 0:00:07.1]} 41...
Kxh4 {[%clk 0:00:59.9]} 42. Rxf4+ {[%clk 0:00:07.3]} 42... Kg3 {[%clk
0:01:00.8]} 43. Rg4+ {[%clk 0:00:07.3]} 43... Kf3 {[%clk 0:01:01.5]} 44. Rxg7
{[%clk 0:00:03.9]} 44... Rxe3 {[%clk 0:01:02.1]} 45. Rxf7 {[%clk 0:00:04.2]}
45... Re2+ {[%clk 0:01:02.6]} 46. Kd3 {[%clk 0:00:04.7]} 46... Re3+ {[%clk
0:01:03]} 47. Kc4 {[%clk 0:00:05]} 47... Re4+ {[%clk 0:01:03.3]} 48. Kb3 {[%clk
0:00:05.4]} 48... Rf4 {[%clk 0:01:03.8]} 49. Rxc7 {[%clk 0:00:04.9]} 49... Rxf5
{[%clk 0:01:03.7]} 50. c4 {[%clk 0:00:04.9]} 50... h5 {[%clk 0:01:03.8]} 51.
Rxb7 {[%clk 0:00:05.1]} 51... h4 {[%clk 0:01:04.2]} 52. Rh7 {[%clk 0:00:05.5]}
52... Kg3 {[%clk 0:01:03.9]} 53. b5 {[%clk 0:00:05.8]} 53... axb5 {[%clk
0:01:01]} 54. cxb5 {[%clk 0:00:06.7]} 54... Rxd5 {[%clk 0:01:01.6]} 55. Kc4
{[%clk 0:00:05.8]} 55... Rc5+ {[%clk 0:01:01.8]} 56. Kb4 {[%clk 0:00:06.3]}
56... h3 {[%clk 0:01:02.7]} 57. b6 {[%clk 0:00:05.9]} 57... h2 {[%clk
0:01:01.4]} 58. b7 {[%clk 0:00:05.9]} 58... Rc1 {[%clk 0:01:02.3]} 59. Rxh2
{[%clk 0:00:05.3]} 59... Rb1+ {[%clk 0:01:01.6]} 60. Kc4 {[%clk 0:00:05.1]}
60... Rxb7 {[%clk 0:01:02.2]} 61. Rd2 {[%clk 0:00:04]} 61... Ra7 {[%clk
0:01:01.7]} 62. Kb5 {[%clk 0:00:03.8]} 62... Rd7 {[%clk 0:01:01.8]} 63. Kc6
{[%clk 0:00:03.8]} 63... Ra7 {[%clk 0:01:01.8]} 64. Kb6 {[%clk 0:00:04.1]} 64...
Rd7 {[%clk 0:01:01.9]} 65. a6 {[%clk 0:00:03.9]} 65... d5 {[%clk 0:01:02.5]} 66.
a7 {[%clk 0:00:04.1]} 66... d4 {[%clk 0:01:02.4]} 67. a8=Q {[%clk 0:00:03.7]}
67... Rd6+ {[%clk 0:01:02.8]} 68. Kc5 {[%clk 0:00:03.6]} 68... Rf6 {[%clk
0:01:03.7]} 69. Qg8+ {[%clk 0:00:03.7]} 69... Kf4 {[%clk 0:01:04.1]} 70. Rxd4+
{[%clk 0:00:04]} 70... Ke3 {[%clk 0:01:04.4]} 71. Qd5 {[%clk 0:00:04.3]} 71...
Rf5 {[%clk 0:01:05.3]} 72. Qxf5 {[%clk 0:00:03.8]} 72... Ke2 {[%clk 0:01:06.2]}
1-0

[Event "*** Titled Tuesday Blitz"]
[Site "Chess.com"]
[Date "2020.04.21"]
[Round "5"]
[White "Korchmar_Vasiliy"]
[Black "Crazy_girl99"]
[Result "1-0"]
[WhiteElo "2585"]
[BlackElo "2412"]
[TimeControl "180+1"]
[EndTime "10:57:40 PDT"]
[Termination "Korchmar_Vasiliy won by resignation"]

1. d4 {[%clk 0:03:00.9]} 1... Nf6 {[%clk 0:02:58.1]} 2. Nf3 {[%clk 0:03:01.1]}
2... d5 {[%clk 0:02:57]} 3. Bf4 {[%clk 0:03:01.5]} 3... g6 {[%clk 0:02:56.1]} 4.
e3 {[%clk 0:02:58.8]} 4... Bg7 {[%clk 0:02:56.5]} 5. Nbd2 {[%clk 0:02:57.8]}
5... c6 {[%clk 0:02:54.9]} 6. Be2 {[%clk 0:02:55.5]} 6... Bf5 {[%clk 0:02:54.3]}
7. O-O {[%clk 0:02:55.6]} 7... O-O {[%clk 0:02:53.6]} 8. c4 {[%clk 0:02:55.1]}
8... h6 {[%clk 0:02:46]} 9. h3 {[%clk 0:02:54.6]} 9... Nbd7 {[%clk 0:02:43]} 10.
Qb3 {[%clk 0:02:54.2]} 10... Qb6 {[%clk 0:02:41.9]} 11. c5 {[%clk 0:02:47.6]}
11... Qxb3 {[%clk 0:02:41.4]} 12. axb3 {[%clk 0:02:48.5]} 12... a6 {[%clk
0:02:41.3]} 13. b4 {[%clk 0:02:48.6]} 13... g5 {[%clk 0:02:41.4]} 14. Bg3 {[%clk
0:02:46.3]} 14... Ne4 {[%clk 0:02:41.3]} 15. Nxe4 {[%clk 0:02:45.6]} 15... Bxe4
{[%clk 0:02:41.4]} 16. Nd2 {[%clk 0:02:46]} 16... Bg6 {[%clk 0:02:35.5]} 17. Nb3
{[%clk 0:02:35.6]} 17... f5 {[%clk 0:02:31.1]} 18. Na5 {[%clk 0:02:24.8]} 18...
f4 {[%clk 0:02:30.8]} 19. Bh2 {[%clk 0:02:25.4]} 19... Rab8 {[%clk 0:02:25.9]}
20. Bg4 {[%clk 0:02:17.5]} 20... Bf5 {[%clk 0:01:57.9]} 21. Rfe1 {[%clk
0:02:01.2]} 21... Bxg4 {[%clk 0:01:54.1]} 22. hxg4 {[%clk 0:02:02.1]} 22... e5
{[%clk 0:01:54.4]} 23. Rad1 {[%clk 0:01:33.8]} 23... exd4 {[%clk 0:01:44.8]} 24.
exd4 {[%clk 0:01:32.7]} 24... Nf6 {[%clk 0:01:44.5]} 25. f3 {[%clk 0:01:32.4]}
25... Rf7 {[%clk 0:01:26.3]} 26. Kf1 {[%clk 0:01:32.3]} 26... Nh7 {[%clk
0:01:24]} 27. Bg1 {[%clk 0:01:21.1]} 27... Nf8 {[%clk 0:01:21.7]} 28. Re2 {[%clk
0:01:17.8]} 28... Rc7 {[%clk 0:01:12.4]} 29. Rde1 {[%clk 0:01:18]} 29... b6
{[%clk 0:01:10.5]} 30. cxb6 {[%clk 0:00:36.8]} 30... Rxb6 {[%clk 0:01:09.8]} 31.
Rc2 {[%clk 0:00:32.8]} 31... Rxb4 {[%clk 0:00:34.6]} 32. Nxc6 {[%clk 0:00:32]}
32... Rbb7 {[%clk 0:00:34]} 33. Ra1 {[%clk 0:00:20.6]} 33... Rb6 {[%clk
0:00:27.6]} 34. Rac1 {[%clk 0:00:18.6]} 34... Ne6 {[%clk 0:00:27.2]} 35. Bf2
{[%clk 0:00:12]} 35... Rcb7 {[%clk 0:00:25.7]} 36. b4 {[%clk 0:00:08.7]} 36...
Bf8 {[%clk 0:00:25]} 37. Be1 {[%clk 0:00:08.2]} 37... Bd6 {[%clk 0:00:21.5]} 38.
Ke2 {[%clk 0:00:08.3]} 38... Kf7 {[%clk 0:00:19.1]} 39. Kd3 {[%clk 0:00:08.7]}
39... Ke8 {[%clk 0:00:19.3]} 40. Bd2 {[%clk 0:00:08.7]} 40... Kd7 {[%clk
0:00:18.7]} 41. Na5 {[%clk 0:00:04.9]} 41... Rb8 {[%clk 0:00:15.8]} 42. Rc6
{[%clk 0:00:04.3]} 42... Rxc6 {[%clk 0:00:15.3]} 43. Rxc6 {[%clk 0:00:03.6]}
43... Bxb4 {[%clk 0:00:14.8]} 44. Bxb4 {[%clk 0:00:03.9]} 44... Rxb4 {[%clk
0:00:15.7]} 45. Rxa6 {[%clk 0:00:03.8]} 45... Ra4 {[%clk 0:00:15]} 46. Ra7+
{[%clk 0:00:03.7]} 46... Kd6 {[%clk 0:00:15.3]} 47. Nb7+ {[%clk 0:00:03.4]}
47... Kc7 {[%clk 0:00:15.6]} 48. Rxa4 {[%clk 0:00:04.3]} 48... Kxb7 {[%clk
0:00:16.2]} 49. Ra5 {[%clk 0:00:04.4]} 49... Kc7 {[%clk 0:00:15.8]} 50. Rxd5
{[%clk 0:00:04.4]} 50... Kc6 {[%clk 0:00:15.6]} 51. Ra5 {[%clk 0:00:04.5]} 51...
Kd6 {[%clk 0:00:15.8]} 52. Ra6+ {[%clk 0:00:04.9]} 52... Ke7 {[%clk 0:00:16.2]}
53. Ra7+ {[%clk 0:00:05.4]} 53... Kf6 {[%clk 0:00:16]} 54. Ra6 {[%clk
0:00:06.3]} 54... Ke7 {[%clk 0:00:16]} 55. Ke4 {[%clk 0:00:04.9]} 55... Kd7
{[%clk 0:00:15.8]} 56. Ke5 {[%clk 0:00:04.7]} 56... Nc7 {[%clk 0:00:16.3]} 57.
Rxh6 {[%clk 0:00:04.6]} 1-0